lending/lending_fUSD_20240112
["ID","MTS","AMOUNT","RATE_DAILY","PERIOD"]
[311418083,1705080652100,-500.0,0.0003579,2]
[311418084,1705080652110,-500.0,0.0003579,2]
[311418085,1705080652118,-500.0,0.0003579,2]
[311418086,1705080652128,-500.0,0.0003579,2]
[311418087,1705080652137,-500.0,0.0003579,2]
[311418088,1705080652147,-500.0,0.0003579,2]
[311418089,1705080652156,-500.0,0.0003579,2]
[311418090,1705080652165,-500.0,0.0003579,2]
[311418091,1705080652175,-500.0,0.0003579,2]
[311418092,1705080652184,-500.0,0.0003579,2]
[311418093,1705080652193,-500.0,0.0003579,2]
[311418094,1705080652202,-500.0,0.0003579,2]
[311418095,1705080652210,-500.0,0.0003579,2]
[311418096,1705080652220,-500.0,0.0003579,2]
[311418097,1705080652229,-500.0,0.0003579,2]
[311418098,1705080652238,-500.0,0.0003579,2]
[311418099,1705080652248,-500.0,0.0003579,2]
[311418100,1705080652257,-500.0,0.0003579,2]
[311418101,1705080652266,-500.0,0.0003579,2]
[311418102,1705080652276,-500.0,0.0003579,2]
[311418103,1705080652286,-500.0,0.0003579,2]
[311418104,1705080652296,-500.0,0.0003579,2]
[311418105,1705080652305,-500.0,0.0003579,2]
[311418106,1705080652315,-500.0,0.0003579,2]
[311418107,1705080652325,-500.0,0.0003579,2]
[311418108,1705080652336,-500.0,0.0003579,2]
[311418109,1705080652345,-500.0,0.0003579,2]
[311418110,1705080652355,-500.0,0.0003579,2]
[311418111,1705080652365,-500.0,0.0003579,2]
[311418112,1705080652374,-500.0,0.0003579,2]
[311418113,1705080652384,-500.0,0.0003579,2]
[311418114,1705080652393,-500.0,0.0003579,2]
[311418115,1705080652403,-500.0,0.0003579,2]
[311418116,1705080652413,-500.0,0.0003579,2]
[311418117,1705080652426,-500.0,0.0003579,2]
[311418118,1705080652435,-500.0,0.0003579,2]
[311418119,1705080652445,-500.0,0.0003579,2]
[311418120,1705080652457,-500.0,0.0003579,2]
[311418121,1705080652466,-500.0,0.0003579,2]
[311418122,1705080652475,-500.0,0.0003579,2]
[311418123,1705080652485,-500.0,0.0003579,2]
[311418124,1705080652494,-500.0,0.0003579,2]
[311418125,1705080652504,-500.0,0.0003579,2]
[311418126,1705080652513,-500.0,0.0003579,2]
[311418127,1705080652522,-500.0,0.0003579,2]
[311418128,1705080652531,-500.0,0.0003579,2]
[311418129,1705080652540,-500.0,0.0003579,2]
[311418130,1705080652550,-500.0,0.0003579,2]
[311418131,1705080652559,-350.0,0.0003579,2]
[311418132,1705080652568,-500.0,0.0003579,2]
[311418133,1705080652577,-500.0,0.0003579,2]
[311418134,1705080652586,-500.0,0.0003579,2]
[311418135,1705080652596,-500.0,0.0003579,2]
[311418136,1705080652605,-500.0,0.0003579,2]
[311418137,1705080652614,-500.0,0.0003579,2]
[311418138,1705080652623,-500.0,0.0003579,2]
[311418139,1705080652632,-500.0,0.0003579,2]
[311418140,1705080652641,-500.0,0.0003579,2]
[311418141,1705080652650,-500.0,0.0003579,2]
[311418142,1705080652660,-500.0,0.0003579,2]
[311418143,1705080652669,-500.0,0.0003579,2]
[311418144,1705080652681,-500.0,0.0003579,2]
[311418145,1705080652691,-500.0,0.0003579,2]
[311418146,1705080652700,-500.0,0.0003579,2]
[311418147,1705080652710,-500.0,0.0003579,2]
[311418148,1705080652719,-500.0,0.0003579,2]
[311418149,1705080652729,-500.0,0.0003579,2]
[311418150,1705080652738,-500.0,0.0003579,2]
[311418151,1705080652747,-500.0,0.0003579,2]
[311418152,1705080652756,-500.0,0.0003579,2]
[311418153,1705080652766,-500.0,0.0003579,2]
[311418154,1705080652775,-500.0,0.0003579,2]
[311418155,1705080652784,-500.0,0.0003579,2]
[311418156,1705080652793,-500.0,0.0003579,2]
[311418157,1705080652802,-500.0,0.0003579,2]
[311418158,1705080652812,-500.0,0.0003579,2]
[311418159,1705080652821,-500.0,0.0003579,2]
[311418160,1705080652830,-500.0,0.0003579,2]
[311418161,1705080652839,-500.0,0.0003579,2]
[311418162,1705080652849,-500.0,0.0003579,2]
[311418163,1705080652859,-500.0,0.0003579,2]
[311418164,1705080652868,-500.0,0.0003579,2]
[311418165,1705080652878,-500.0,0.0003579,2]
[311418166,1705080652888,-500.0,0.0003579,2]
[311418167,1705080652897,-200.0,0.0003579,2]
[311418168,1705080652906,-500.0,0.0003579,2]
[311418169,1705080652915,-500.0,0.0003579,2]
[311418170,1705080652928,-500.0,0.0003579,2]
[311418171,1705080652938,-500.0,0.0003579,2]
[311418172,1705080652946,-500.0,0.0003579,2]
[311418173,1705080652955,-500.0,0.0003579,2]
[311418174,1705080652964,-500.0,0.0003579,2]
[311418175,1705080653030,-500.0,0.0003579,2]
[311418176,1705080653040,-500.0,0.0003579,2]
[311418177,1705080653049,-500.0,0.0003579,2]
[311418178,1705080653058,-500.0,0.0003579,2]
[311418179,1705080653068,-500.0,0.0003579,2]
[311418180,1705080653077,-500.0,0.0003579,2]
[311418181,1705080653087,-500.0,0.0003579,2]
[311418182,1705080653096,-500.0,0.0003579,2]
[311418183,1705080653106,-500.0,0.0003579,2]
[311418184,1705080653115,-500.0,0.0003579,2]
[311418185,1705080653125,-500.0,0.0003579,2]
[311418186,1705080653134,-500.0,0.0003579,2]
[311418187,1705080653143,-500.0,0.0003579,2]
[311418188,1705080653153,-500.0,0.0003579,2]
[311418189,1705080653163,-500.0,0.0003579,2]
[311418190,1705080653173,-500.0,0.0003579,2]
[311418191,1705080653186,-500.0,0.0003579,2]
[311418192,1705080653196,-500.0,0.0003579,2]
[311418193,1705080653206,-500.0,0.0003579,2]
[311418194,1705080653216,-500.0,0.0003579,2]
[311418195,1705080653227,-500.0,0.0003579,2]
[311418196,1705080653236,-500.0,0.0003579,2]
[311418197,1705080653246,-500.0,0.0003579,2]
[311418198,1705080653255,-500.0,0.0003579,2]
[311418199,1705080653265,-500.0,0.0003579,2]
[311418200,1705080653275,-500.0,0.0003579,2]
[311418201,1705080653284,-500.0,0.0003579,2]
[311418202,1705080653294,-500.0,0.0003579,2]
[311418203,1705080653303,-500.0,0.0003579,2]
[311418204,1705080653313,-34088.7714,0.0003579,2]
[311418205,1705080653323,-2328.78,0.00035798,2]
[311418206,1705080653332,-150.37368417,0.00035851,2]
[311418207,1705080653342,-1973.84689895,0.0003589,2]
[311418208,1705080653352,-500.0,0.0003589,4]
[311418209,1705080653361,-178.586387,0.0003589,2]
[311418210,1705080653370,-500.0,0.0003589,4]
[311418211,1705080653380,-500.0,0.0003589,4]
[311418212,1705080653389,-1000.0,0.0003589,4]
[311418213,1705080653398,-500.0,0.0003589,4]
[311418214,1705080653408,-500.0,0.0003589,4]
[311418215,1705080653417,-500.0,0.0003589,4]
[311418216,1705080653429,-500.0,0.0003589,4]
[311418217,1705080653439,-500.0,0.0003589,4]
[311418218,1705080653451,-399.00487169,0.0003589,4]
[311418219,1705080653461,-500.0,0.0003589,4]
[311418220,1705080653470,-500.0,0.0003589,4]
[311418221,1705080653480,-501.99217334,0.0003589,4]
[311418222,1705080653490,-500.0,0.0003589,4]
[311418223,1705080653499,-500.0,0.0003589,4]
[311418224,1705080653509,-1000.0,0.0003589,5]
[311418225,1705080653519,-500.0,0.0003589,4]
[311418226,1705080653528,-506.84444895,0.0003589,4]
[311418227,1705080653539,-500.0,0.0003589,4]
[311418228,1705080653548,-500.0,0.0003589,4]
[311418229,1705080653558,-500.0,0.0003589,4]
[311418230,1705080653568,-544.7992603,0.0003589,4]
[311418231,1705080653577,-500.0,0.0003589,4]
[311418232,1705080653586,-500.0,0.0003589,4]
[311418233,1705080653595,-500.0,0.0003589,4]
[311418234,1705080653604,-500.0,0.0003589,4]
[311418235,1705080653614,-200.0,0.000359,13]
[311418236,1705080653623,-167.03,0.00035912,2]
[311418237,1705080653632,-150.0,0.00035999,2]
[311418238,1705080653641,-100000.0,0.00036,6]
[311418239,1705080653650,-1660.95673049,0.00036,4]
[311418240,1705080653659,-116749.25023227,0.00036,4]
[311418241,1705080653668,-762.35821214,0.00036,4]
[311418242,1705080653678,-804.0,0.00036,2]
[311418243,1705080653687,-3000.0,0.00036,2]
[311418244,1705080653696,-129446.18563842,0.00036,2]
[311418245,1705080653705,-8749.98,0.00036,2]
[311418246,1705080653714,-8749.99,0.00036,2]
[311418247,1705080653722,-8750.0,0.00036,2]
[311418248,1705080653731,-8750.0,0.00036,2]
[311418249,1705080653740,-349539.23216413,0.00036,2]
[311418250,1705080653749,-8750.0,0.00036075,2]
[311418251,1705080653758,-8750.0,0.00036075,2]
[311418252,1705080653767,-8750.0,0.0003615,2]
[311418253,1705080653776,-8750.0,0.0003615,2]
[311418254,1705080653785,-500.0,0.00036164,4]
[311418255,1705080653794,-500.0,0.00036164,4]
[311418256,1705080653803,-717.06,0.00036164,4]
[311418257,1705080653812,-500.0,0.00036164,4]
[311418258,1705080653821,-500.0,0.00036164,4]
[311418259,1705080653830,-500.0,0.00036164,4]
[311418260,1705080653839,-500.0,0.00036164,4]
[311418261,1705080653848,-500.0,0.00036164,4]
[311418262,1705080653857,-500.0,0.00036164,4]
[311418263,1705080653866,-500.0,0.00036164,4]
[311418264,1705080653875,-500.0,0.00036164,4]
[311418265,1705080653884,-500.0,0.00036164,4]
[311418266,1705080653893,-500.0,0.00036164,4]
[311418267,1705080653902,-500.0,0.00036164,4]
[311418268,1705080653911,-380.8923903,0.00036164,4]
[311418269,1705080654307,-119.1076097,0.00036164,4]
[311418270,1705080654317,-500.0,0.00036164,4]
[311418271,1705080654326,-500.0,0.00036164,4]
[311418272,1705080654335,-500.0,0.00036164,4]
[311418273,1705080654345,-2732.82200346,0.00036225,2]
[311418274,1705080654362,-5254.57064865,0.00036225,2]
[311418275,1705080654373,-762.60734789,0.00036225,2]
[311418276,1705080654383,-280.86884118,0.00036225,2]
[311418277,1705080654394,-1523.43243491,0.00036225,2]
[311418278,1705080654406,-815.8300559,0.00036225,2]
[311418279,1705080654418,-565.24001,0.00036225,2]
[311418280,1705080654737,-170.71981094,0.00022899,6]
[311418281,1705080654748,-589.92780706,0.000229,2]
[311418282,1705080654759,-547.62,0.000229,2]
[311418283,1705080654771,-418.02475556,0.000229,2]
[311418284,1705080654783,-379.66736045,0.000229,2]
[311418285,1705080654890,-2072.93233201,0.000229,2]
[311418286,1705080655475,-6122.20823021,0.00022899,2]
[311418287,1705080655496,-779.45486601,0.00022899,2]
[311418288,1705080655507,-211.2319722,0.000229,2]
[311418289,1705080655517,-316.38810171,0.00023288,2]
[311418290,1705080655527,-341.53,0.00026008,2]
[311418291,1705080655537,-341.53,0.00026955,2]
[311418292,1705080655547,-341.53,0.00027902,2]
[311418293,1705080655557,-427.286,0.00028273,2]
[311418294,1705080655567,-1931.0,0.00028333,2]
[311418295,1705080655577,-425.0,0.00031273,2]
[311418296,1705080655586,-1931.0,0.00031333,2]
[311418297,1705080655596,-1929.0,0.00034333,2]
[311418298,1705080655606,-5384.32865801,0.00036225,2]
[311418299,1705080655615,-3910.26,0.000363,2]
[311418300,1705080655625,-2578.760598,0.000364,24]
[311418301,1705080655635,-500.0,0.00036438,4]
[311418302,1705080655645,-500.0,0.00036438,4]
[311418303,1705080655654,-500.0,0.00036438,4]
[311418304,1705080655663,-500.0,0.00036438,4]
[311418305,1705080655672,-500.0,0.00036438,4]
[311418306,1705080655684,-500.0,0.00036438,4]
[311418307,1705080655693,-500.0,0.00036438,4]
[311418308,1705080655702,-500.0,0.00036438,4]
[311418309,1705080655711,-500.0,0.00036438,4]
[311418310,1705080655721,-500.0,0.00036438,4]
[311418311,1705080655730,-500.0,0.00036438,4]
[311418312,1705080655739,-500.0,0.00036438,4]
[311418313,1705080655749,-1838.18,0.00036438,2]
[311418314,1705080655758,-929.56,0.000365,7]
[311418315,1705080655768,-150.37368417,0.00036519,2]
[311418316,1705080655777,-153.84,0.0003653,2]
[311418317,1705080655786,-150.1,0.00036599,2]
[311418318,1705080655796,-1920.758059,0.000366,2]
[311418319,1705080655805,-1336.74029471,0.0003661,2]
[311418320,1705080655815,-649.51,0.00036613,15]
[311418321,1705080655824,-500.0,0.00036712,4]
[311418322,1705080655834,-500.0,0.00036712,4]
[311418323,1705080655845,-500.0,0.00036712,4]
[311418324,1705080655854,-500.0,0.00036712,4]
[311418325,1705080655864,-500.0,0.00036712,4]
[311418326,1705080655873,-500.0,0.00036712,4]
[311418327,1705080655883,-271.6463443,0.00036712,4]
[311418328,1705080655892,-500.0,0.00036712,4]
[311418329,1705080655902,-500.0,0.00036712,4]
[311418330,1705080655913,-500.0,0.00036712,4]
[311418331,1705080655922,-500.0,0.00036712,4]
[311418332,1705080655935,-52631.47423,0.000369,3]
[311418333,1705080655945,-1500.0,0.000369,24]
[311418334,1705080655955,-500.0,0.00036986,4]
[311418335,1705080655964,-500.0,0.00036986,4]
[311418336,1705080655973,-500.0,0.00036986,4]
[311418337,1705080655982,-500.0,0.00036986,4]
[311418338,1705080655991,-500.0,0.00036986,4]
[311418339,1705080656001,-500.0,0.00036986,4]
[311418340,1705080656011,-500.0,0.00036986,4]
[311418341,1705080656020,-500.0,0.00036986,4]
[311418342,1705080656030,-500.0,0.00036986,4]
[311418343,1705080656041,-151.0,0.00036986,7]
[311418344,1705080656050,-89784.51745516,0.00037,7]
[311418345,1705080656063,-3354.091551,0.00037,7]
[311418346,1705080656075,-6861.39099384,0.00037,7]
[311418347,1705080656085,-423.04944463,0.00037,2]
[311418348,1705080656094,-308.10228623,0.00037,4]
[311418349,1705080656104,-1526.6072753,0.00037,3]
[311418350,1705080656360,-371.03658294,0.00037,3]
[311418351,1705080656372,-570.38500898,0.00037,3]
[311418352,1705080656383,-643.075,0.00037,3]
[311418353,1705080656394,-770.0,0.00037,3]
[311418354,1705080656407,-1118.89613278,0.00037,3]
[311418355,1705080656416,-190.88642504,0.00037,4]
[311418356,1705080656426,-2328.78,0.00037075,2]
[311418357,1705080656437,-205.0,0.00037164,5]
[311418358,1705080656447,-150.37368417,0.00037186,2]
[311418359,1705080656456,-544.40295217,0.00037219,2]
[311418360,1705080656468,-455.59704783,0.00037219,2]
[311418361,1705080656478,-433.26922306,0.00037219,2]
[311418362,1705080656488,-764.07481746,0.0003724,4]
[311418363,1705080656497,-500.0,0.0003726,4]
[311418364,1705080656506,-500.0,0.0003726,4]
[311418365,1705080656516,-500.0,0.0003726,4]
[311418366,1705080656525,-500.0,0.0003726,4]
[311418367,1705080656535,-500.0,0.0003726,4]
[311418368,1705080656544,-281.07699462,0.0003726,4]
[311418369,1705080656553,-500.0,0.0003726,4]
[311418370,1705080656562,-187.72081585,0.0003726,4]
[311418371,1705080656574,-312.27918415,0.0003726,4]
[311418372,1705080656585,-198.65748743,0.0003726,4]
[311418373,1705080656594,-1802.88,0.000373,7]
[311418374,1705080656603,-148.54216349,0.000373,7]
[311418375,1705080692282,5000.0,0.00022399,2]
[311418376,1705080719294,23900.0,0.00021565,2]
[311418377,1705080721787,523.8307,0.00022399,2]
[311418378,1705080730618,239172.0027,0.00022399,2]
[311418379,1705080973075,558.15325618,0.00022386,2]
[311418380,1705080974790,352.11167784,0.00022273,2]
[311418381,1705080995071,557.20051162,0.00022386,2]
[311418382,1705081008663,656.21231831,0.00022398,2]
[311418383,1705081070343,-1044.22309217,0.00022492,2]
[311418384,1705081070369,-1707.23061659,0.00022493,2]
[311418385,1705081070395,-3041.02252982,0.00022494,2]
[311418386,1705081070420,-21499.59141379,0.00022494,2]
[311418387,1705081070445,-500.89319127,0.00022495,2]
[311418388,1705081070473,-1135.27978758,0.00022495,2]
[311418389,1705081070499,-6987.42183189,0.00022495,2]
[311418390,1705081070532,-172.34910409,0.00022496,2]
[311418391,1705081070556,-41161.9884328,0.00022497,2]
[311418392,1705081124766,150.0,0.000224,2]
[311418393,1705081124787,150.0,0.000224,2]
[311418394,1705081124809,137.47487888,0.000224,2]
[311418395,1705081126161,150.0,0.0002245,2]
[311418396,1705081126182,150.0,0.0002245,2]
[311418397,1705081126201,137.47487887,0.0002245,2]
[311418398,1705081156160,150.0,0.00022271,2]
[311418399,1705081156182,150.0,0.00022271,2]
[311418400,1705081156202,150.0,0.00022271,2]
[311418401,1705081156223,150.0,0.00022271,2]
[311418402,1705081156244,150.0,0.00022271,2]
[311418403,1705081156265,150.0,0.00022271,2]
[311418404,1705081156289,150.0,0.00022271,2]
[311418405,1705081156310,150.0,0.00022271,2]
[311418406,1705081156332,150.0,0.00022271,2]
[311418407,1705081156353,150.0,0.00022271,2]
[311418408,1705081156374,150.0,0.00022271,2]
[311418409,1705081156395,150.0,0.00022271,2]
[311418410,1705081156418,150.0,0.00022271,2]
[311418411,1705081156439,150.0,0.00022271,2]
[311418412,1705081156460,150.0,0.00022271,2]
[311418413,1705081156481,150.0,0.00022271,2]
[311418414,1705081156501,150.0,0.00022271,2]
[311418415,1705081156521,150.0,0.00022271,2]
[311418416,1705081156542,150.0,0.00022271,2]
[311418417,1705081156563,150.0,0.00022271,2]
[311418418,1705081156584,150.0,0.00022271,2]
[311418419,1705081156604,150.0,0.00022271,2]
[311418420,1705081156625,215.52024225,0.00022271,2]
[311418421,1705081156647,21665.70131078,0.00022271,2]
[311418422,1705081167183,97922.8052,0.00022397,2]
[311418423,1705081177684,326.72373977,0.00022269,2]
[311418424,1705081185521,250.8774,0.00022397,2]
[311418425,1705081192296,855.86394758,0.00022397,2]
[311418426,1705081193528,170.84510454,0.000224,2]
[311418427,1705081198525,170.84510454,0.0002245,2]
[311418428,1705081229830,2428.9975,0.00022397,2]
[311418429,1705081246048,766.72392797,0.000224,2]
[311418430,1705081280463,4570.4174,0.000224,2]
[311418431,1705081313445,337.81,0.0001992,2]
[311418432,1705081314142,337.81,0.00022184,2]
[311418433,1705081326382,646.1423,0.00022389,2]
[311418434,1705081335159,170.84510454,0.000224,2]
[311418435,1705081344876,166.36,0.00021849,2]
[311418436,1705081345101,166.36,0.00022076,2]
[311418437,1705081345336,166.36,0.00022304,2]
[311418438,1705081386282,613.37914236,0.000224,2]
[311418439,1705081412537,155.0,0.00022396,2]
[311418440,1705081446915,165.18,0.00021575,2]
[311418441,1705081447512,157.71,0.00021575,2]
[311418442,1705081447744,157.71,0.0002179,2]
[311418443,1705081448150,157.71,0.00022006,2]
[311418444,1705081448739,157.71,0.00022222,2]
[311418445,1705081448821,157.71,0.00022438,2]
[311418446,1705081451580,214.91665787,0.00021574,2]
[311418447,1705081469724,337.22386989,0.0002245,2]
[311418448,1705081472481,7774.2456972,0.0002245,2]
[311418449,1705081474001,155.0,0.0002245,2]
[311418450,1705081477440,295.15408793,0.0002245,2]
[311418451,1705081479319,370.74569701,0.0002245,2]
[311418452,1705081481316,157.3878743,0.0002245,2]
[311418453,1705081482307,301.90910224,0.0002245,2]
[311418454,1705081485366,1254.8177837,0.0002245,2]
[311418455,1705081490716,549.1215,0.00022397,2]
[311418456,1705081493373,258.53062799,0.00022351,2]
[311418457,1705081496642,250.02290447,0.0002245,2]
[311418458,1705081498524,10544.01891399,0.0002245,2]
[311418459,1705081500364,500.89319127,0.0002245,2]
[311418460,1705081501727,150.0,0.0002245,2]
[311418461,1705081502371,177.63055213,0.0002245,2]
[311418462,1705081502582,2142.99004246,0.0002245,2]
[311418463,1705081502892,4698.35903998,0.0002245,2]
[311418464,1705081508243,400.06896681,0.0002245,2]
[311418465,1705081510064,6430.93693528,0.0002245,2]
[311418466,1705081510998,309.79583088,0.0002245,2]
[311418467,1705081511720,155.0,0.0002245,2]
[311418468,1705081517244,975.73879934,0.00022449,2]
[311418469,1705081518814,4267.19887316,0.0002245,2]
[311418470,1705081519528,232.92375042,0.0002245,2]
[311418471,1705081520481,155.0,0.0002245,2]
[311418472,1705081527562,490.70331388,0.000224,2]
[311418473,1705081529934,2294.55917338,0.0002245,2]
[311418474,1705081531807,2108.96929926,0.0002245,2]
[311418475,1705081533460,155.0,0.0002245,2]
[311418476,1705081535038,252.65442073,0.0002245,2]
[311418477,1705081537581,234.89781562,0.0002245,2]
[311418478,1705081624416,470.11592777,0.000224,2]
[311418479,1705081627293,2111.8184,0.00022384,2]
[311418480,1705081630113,-4075.33126583,0.00022453,2]
[311418481,1705081641651,474.00607165,0.000224,2]
[311418482,1705081647491,20117.4608,0.00022396,2]
[311418483,1705081668537,392.56265112,0.000224,2]
[311418484,1705081681606,150.0,0.0002245,2]
[311418485,1705081684056,300.0,0.0002245,2]
[311418486,1705081699545,4621.13534741,0.0002245,2]
[311418487,1705081701927,500.89319127,0.0002245,2]
[311418488,1705081703083,338559.0,0.00022374,2]
[311418489,1705081717533,1300.52240419,0.0002245,2]
[311418490,1705081717911,227.97334727,0.0002245,2]
[311418492,1705081730192,2000.0,0.00021593,2]
[311418493,1705081756597,304.02,0.00019675,2]
[311418494,1705081757136,304.02,0.00021939,2]
[311418496,1705081771428,315.2004,0.00022382,2]
[311418497,1705081780133,18992.61046587,0.0002245,2]
[311418498,1705081784101,6430.93693528,0.0002245,2]
[311418500,1705081808922,314.05012088,0.000224,2]
[311418510,1705081832267,-150.0,0.00022451,2]
[311418511,1705081832277,-1990.34854682,0.00022451,2]
[311418512,1705081832335,-257.88,0.00022451,2]
[311418513,1705081832418,-1077.02355385,0.00022451,2]
[311418514,1705081832429,-155.0,0.00022457,2]
[311418515,1705081832439,-234.98930555,0.00022468,2]
[311418516,1705081832448,-251.17673965,0.00022469,2]
[311418517,1705081832457,-6883.12650243,0.0002247,2]
[311418518,1705081832466,-10255.15216397,0.00022474,2]
[311418519,1705081832476,-9564.74,0.00022474,2]
[311418520,1705081832485,-6428.35,0.00022476,2]
[311418521,1705081832494,-1482.58994778,0.0002248,2]
[311418522,1705081832504,-155.29235094,0.0002248,2]
[311418523,1705081832514,-2416.77564412,0.0002248,2]
[311418524,1705081832523,-1055.77828974,0.00022481,2]
[311418525,1705081832534,-456.96,0.00022481,2]
[311418526,1705081832543,-1265.52,0.00022481,2]
[311418527,1705081832552,-1957.52550198,0.00022482,2]
[311418529,1705081832565,-159.3178413,0.00022482,2]
[311418531,1705081832575,-156.42575106,0.00022482,2]
[311418533,1705081832584,-453.66618556,0.00022482,2]
[311418535,1705081832594,-295.01959701,0.00022482,2]
[311418537,1705081832603,-404.58508962,0.00022482,2]
[311418539,1705081832613,-210.40593209,0.00022482,2]
[311418541,1705081832624,-370.34314814,0.00022482,2]
[311418542,1705081832635,-436.14901063,0.00022482,2]
[311418543,1705081832645,-218.58650666,0.00022482,2]
[311418544,1705081832656,-246.33521087,0.00022482,2]
[311418545,1705081832665,-28.94945583,0.00022482,2]
[311418546,1705081832677,-209.65889204,0.00022482,2]
[311418547,1705081832686,-270.43975547,0.00022482,2]
[311418548,1705081832695,-19.89740849,0.00022482,2]
[311418549,1705081832817,-441.38348744,0.00022482,2]
[311418550,1705081832826,-4234.28236815,0.00022482,2]
[311418551,1705081832835,-436.11823403,0.00022482,2]
[311418552,1705081832844,-2142.06705548,0.00022482,2]
[311418553,1705081832853,-5194.85220679,0.00022482,2]
[311418554,1705081832862,-284.84113665,0.00022482,2]
[311418555,1705081832873,-399.14934415,0.00022482,2]
[311418556,1705081832882,-310.71054499,0.00022482,2]
[311418557,1705081832891,-155.0,0.00022482,2]
[311418558,1705081832900,-205.00240144,0.00022482,2]
[311418559,1705081832909,-12151.78573776,0.00022482,2]
[311418560,1705081832918,-632.15754905,0.00022482,2]
[311418561,1705081832928,-216.28075328,0.00022483,2]
[311418562,1705081832937,-275.27598864,0.00022483,2]
[311418563,1705081832947,-2935.4418977,0.00022483,2]
[311418564,1705081832957,-62420.11380819,0.00022484,2]
[311418578,1705081839263,-1002.68409576,0.00022484,2]
[311418579,1705081839273,-376.42129057,0.00022485,2]
[311418580,1705081839332,-7980.98870943,0.00022485,2]
[311418581,1705081839343,-5099.30032581,0.00022487,2]
[311418582,1705081839352,-150.99,0.00022487,2]
[311418583,1705081839361,-183.54,0.00022487,2]
[311418584,1705081839374,-555.34194853,0.00022488,2]
[311418585,1705081839383,-251.25307916,0.00022492,2]
[311418586,1705081839392,-230.27515087,0.00022494,2]
[311418587,1705081839402,-529.74860892,0.00022494,2]
[311418588,1705081839412,-184.06324017,0.00022494,2]
[311418589,1705081839425,-155.91143842,0.00022494,2]
[311418590,1705081839435,-676.40668011,0.00022494,2]
[311418591,1705081839445,-259.11318057,0.00022494,2]
[311418592,1705081839455,-155.0,0.00022494,2]
[311418593,1705081839465,-155.89376086,0.00022494,2]
[311418594,1705081839476,-541.91712272,0.00022494,2]
[311418595,1705081839485,-6627.5552713,0.00022494,2]
[311418596,1705081839495,-2826.04907535,0.00022494,2]
[311418597,1705081839507,-321.41456711,0.00022494,2]
[311418598,1705081839522,-2664.30493838,0.00022494,2]
[311418599,1705081839666,-436.18,0.00022494,2]
[311418600,1705081839677,-872.872,0.00022494,2]
[311418602,1705081839706,-1759.18905794,0.00022494,2]
[311418604,1705081839716,-376.4655823,0.00022494,2]
[311418606,1705081839726,-2084.88463798,0.00022494,2]
[311418608,1705081839736,-202.84732285,0.00022494,2]
[311418610,1705081839745,-1024.13887096,0.00022496,2]
[311418612,1705081839755,-1134.49677334,0.00022496,2]
[311418613,1705081839764,-705.28951991,0.00022496,2]
[311418615,1705081839774,-1457.35331462,0.00022496,2]
[311418617,1705081839783,-1100.28856509,0.00022496,2]
[311418619,1705081839793,-5436.16739237,0.00022496,2]
[311418621,1705081839803,-158.57658362,0.00022496,2]
[311418624,1705081839812,-172.46613892,0.00022496,2]
[311418625,1705081839821,-258.05784905,0.00022496,2]
[311418627,1705081839831,-3854.1171014,0.00022496,2]